bitfinex-derivatives/quotes_ETHF0:USTF0_20250123
["timestamp","ask_amount","ask_price","bid_price","bid_amount"]
[1737606737600,0.62236,3216.0,3215.8,41.42238]
[1737606738003,0.62237,3216.0,3215.8,41.42238]
[1737606738207,4.76335,3216.7,3215.8,40.8]
[1737606738400,0.62233,3216.2,3216.0,0.62234]
[1737606738910,3.2078,3216.7,3216.0,0.2487]
[1737606739108,0.6223,3216.3,3216.1,3.83012]
[1737606739404,3.2078,3216.7,3216.1,3.2078]
[1737606739608,0.62231,3216.2,3216.1,3.2078]
[1737606741309,0.62231,3216.2,3216.0,0.2487]
[1737606741310,0.62233,3216.1,3216.0,0.2487]
[1737606743097,0.62228,3216.4,3216.2,0.6223]
[1737606743304,0.62229,3216.4,3216.2,0.6223]
[1737606743709,0.62229,3216.4,3216.3,0.62229]
[1737606743907,0.62229,3216.4,3216.2,0.6223]
[1737606744106,3.2078,3216.7,3216.1,0.62232]
[1737606744107,0.62231,3216.3,3216.1,0.62232]
[1737606744308,3.2078,3216.7,3216.1,0.62232]
[1737606744511,0.6223,3216.3,3216.2,0.62231]
[1737606744707,2.79757,3216.9,3216.1,0.62232]
[1737606745007,0.62231,3216.2,3216.1,0.62232]
[1737606745205,0.62233,3216.1,3216.0,3.4565]
[1737606745406,0.62233,3216.1,3216.0,0.2487]
[1737606746307,0.62233,3216.1,3216.0,1.4796]
[1737606746506,1.88993,3216.1,3216.0,1.4796]
[1737606746810,4.35381113,3216.1,3216.0,1.4796]
[1737606747115,1.27673,3216.1,3216.0,1.4796]
[1737606748505,0.6132,3216.6,3216.0,1.4796]
[1737606748707,0.62228,3216.4,3216.3,0.62228]
[1737606749109,0.62228,3216.4,3216.3,41.42228]
[1737606749909,0.62228,3216.4,3216.3,40.8]
[1737606750109,0.62228,3216.4,3216.3,41.42229]
[1737606750512,0.62228,3216.4,3216.3,40.8]
[1737606750711,0.62228,3216.4,3216.3,41.42229]
[1737606751215,0.62228,3216.4,3216.3,40.8]
[1737606751716,0.62233,3216.1,3216.0,1.7283]
[1737606752015,6.29401113,3216.1,3216.0,1.7283]
[1737606752214,3.83013,3216.1,3216.0,42.5283]
[1737606763821,0.62233,3216.1,3216.0,42.5283]
[1737606766219,6.29401113,3216.1,3216.0,1.10381]
[1737606766420,6.29401113,3216.1,3216.0,0.36905]
[1737606766727,6.34599292,3216.1,3216.0,0.36905]
[1737606767530,6.34599292,3216.1,3216.0,0.40345]
[1737606768219,3.83013,3216.1,3216.0,0.40345]
[1737606769421,3.83158631,3216.1,3216.0,0.40345]
[1737606769624,0.62378631,3216.1,3216.0,41.20345]
[1737606781732,3.08766744,3216.1,3216.0,41.20345]
[1737606781933,3.08766744,3216.1,3216.0,0.40345]
[1737606782625,0.62378631,3216.1,3216.0,0.40345]
[1737606784233,3.08766744,3216.1,3216.0,1e-05]
[1737606784634,0.62237,3215.9,3215.8,40.8]
[1737606785134,0.62245,3215.5,3215.4,0.6684]
[1737606785536,0.62245,3215.5,3215.4,41.5798]
[1737606795436,3.83025,3215.5,3215.4,41.5798]
[1737606795838,6.29413113,3215.5,3215.4,0.1114]
[1737606796141,0.62258,3214.8,3214.7,1.34727021]
[1737606796343,0.62258,3214.8,3214.7,42.14727021]
[1737606797342,0.62258,3214.8,3214.7,40.80467021]
[1737606797934,5.0,3214.8,3214.0,3.2078]
[1737606798139,0.62272,3214.1,3214.0,3.2078]
[1737606798337,0.62274,3214.0,3213.9,0.666]
[1737606799037,0.62274,3214.0,3213.9,40.8]
[1737606800945,0.6228,3213.7,3213.6,0.00467021]
[1737606801349,0.6228,3213.7,3213.6,40.80467021]
[1737606803756,1.2948,3213.7,3213.6,40.80467021]
[1737606808049,3.2078,3213.8,3213.6,40.80467021]
[1737606808347,3.2078,3214.2,3214.1,0.62272]
[1737606808551,3.2078,3214.2,3214.0,0.62272]
[1737606808851,0.00467021,3214.3,3214.2,0.6227]
[1737606809254,0.00467021,3214.3,3214.1,44.0078]
[1737606809447,0.00467021,3214.3,3214.1,44.63051]
[1737606809750,0.62259,3214.8,3214.6,0.62262]
[1737606809939,0.62259,3214.8,3214.5,0.62263]
[1737606810143,3.2078,3214.9,3214.2,2.46388113]
[1737606810349,0.62256,3215.0,3214.8,0.62257]
[1737606810553,3.2078,3215.3,3214.8,0.62257]
[1737606810853,0.62254,3215.0,3214.8,0.62258]
[1737606811042,0.62254,3215.0,3214.9,40.8]
[1737606812153,0.67451121,3215.0,3214.9,40.8]
[1737606812353,3.11668113,3215.2,3214.5,3.2078]
[1737606812555,0.62262,3214.6,3214.5,3.2078]
[1737606812852,0.62262,3214.6,3214.5,44.0078]
[1737606814254,0.62262,3214.6,3214.5,3.2078]
[1737606816250,3.08650113,3214.6,3214.5,3.2078]
[1737606816447,3.08650113,3214.6,3214.2,0.6399]
[1737606816448,2.46388113,3214.6,3214.2,0.6399]
[1737606816652,0.62268,3214.3,3214.2,0.6399]
[1737606816854,0.62268,3214.3,3214.2,41.4399]
[1737606817650,2.46388113,3214.6,3214.1,3.2078]
[1737606817856,0.6227,3214.2,3214.1,3.2078]
[1737606818061,2.46388113,3214.3,3213.7,1.2889]
[1737606818358,0.6228,3213.7,3213.6,3.21247021]
[1737606818855,0.6228,3213.7,3213.6,44.01247021]
[1737606819853,0.62279,3213.8,3213.6,44.63529021]
[1737606820055,0.6823,3214.1,3213.7,0.6599]
[1737606820255,0.62276,3213.9,3213.8,0.6739]
[1737606820861,2.46388113,3214.4,3213.8,1.29666]
[1737606821051,0.62272,3214.1,3214.0,3.2078]
[1737606823050,0.62269,3214.3,3214.0,3.83052]
[1737606823251,0.6227,3214.2,3214.1,0.6714]
[1737606824352,0.6227,3214.2,3214.1,41.4714]
[1737606824552,3.2078,3214.5,3214.1,40.8]
[1737606824762,0.6227,3214.2,3214.1,40.8]
[1737606825056,0.62272,3214.1,3214.0,3.2078]
[1737606825363,1.29632,3214.1,3214.0,44.0078]
[1737606826755,1.29632,3214.1,3214.0,3.2078]
[1737606829163,0.62272,3214.1,3214.0,3.2078]
[1737606830560,0.62272,3214.1,3214.0,44.0078]
[1737606832565,0.62272,3214.1,3214.0,40.8]
[1737606832862,3.08660113,3214.1,3214.0,40.8]
[1737606833162,0.6228,3213.7,3213.6,3.21247021]
[1737606834459,0.6228,3213.7,3213.6,44.01247021]
[1737606835464,1.3296,3214.3,3213.6,44.66707021]
[1737606835659,0.62279,3213.8,3213.6,45.28988021]
[1737606835859,0.6228,3213.7,3213.6,44.66707021]
[1737606837264,2.46388113,3214.7,3213.6,44.66707021]
[1737606837462,2.46388113,3214.7,3214.0,3.2078]
[1737606837658,0.62272,3214.1,3214.0,3.2078]
[1737606838756,0.62279,3213.8,3213.6,44.66707021]
[1737606839066,0.6228,3213.7,3213.6,44.66707021]
[1737606839267,0.62279,3213.8,3213.6,45.28988021]
[1737606839576,1.55672,3214.3,3213.6,44.66707021]
[1737606839577,0.6228,3213.7,3213.6,44.66707021]
[1737606840958,0.6228,3213.7,3213.6,44.01247021]
[1737606842467,0.62278,3213.8,3213.6,44.01247021]
[1737606842669,0.62278,3213.8,3213.7,0.6228]
[1737606843473,0.62278,3213.8,3213.6,44.01247021]
[1737606843768,0.6228,3213.7,3213.6,44.01247021]
[1737606846066,0.62279,3213.8,3213.7,0.62278]
[1737606846262,0.62275,3214.0,3213.9,0.62275]
[1737606847169,0.62276,3213.9,3213.8,0.62277]
[1737606847375,0.62276,3213.9,3213.8,41.42277]
[1737606847975,0.62276,3213.9,3213.8,40.8]
[1737606848277,0.62275,3214.0,3213.9,0.62275]
[1737606848579,0.62276,3213.9,3213.8,41.42277]
[1737606849172,1.55666,3214.4,3213.8,41.42277]
[1737606849368,0.62275,3214.0,3213.9,3.83056]
[1737606849572,0.62275,3214.0,3213.9,3.2078]
[1737606850178,0.62275,3214.0,3213.9,3.83056]
[1737606850577,0.62275,3214.0,3213.9,3.2078]
[1737606850877,2.8969,3214.6,3213.9,3.2078]
[1737606851177,0.62274,3214.0,3213.9,3.2078]
[1737606851368,0.62274,3214.0,3213.8,41.42277]
[1737606851369,3.2078,3214.3,3213.8,40.8]
[1737606851572,1.25386,3213.9,3213.8,40.8]
[1737606856583,0.62275,3214.0,3213.8,44.0078]
[1737606856780,0.62275,3214.0,3213.8,44.63056]
[1737606856982,0.6938,3214.4,3213.8,44.0078]
[1737606857185,0.62274,3214.1,3213.9,0.62275]
[1737606857383,0.62274,3214.1,3213.8,44.0078]
[1737606857384,0.62274,3214.0,3213.8,44.63056]
[1737606857584,0.6938,3214.4,3213.8,44.0078]
[1737606857782,3.15768113,3214.4,3213.8,44.0078]
[1737606857983,0.62276,3213.9,3213.8,44.0078]
[1737606859079,1.3596,3214.4,3213.8,44.0078]
[1737606859376,0.6938,3214.4,3213.9,0.62276]
[1737606859587,0.62273,3214.1,3213.9,0.62276]
[1737606859777,0.62273,3214.1,3214.0,0.6912]
[1737606861083,0.62276,3213.9,3213.8,3.2078]
[1737606861485,0.62276,3213.9,3213.8,44.0078]
[1737606866994,0.62276,3213.9,3213.8,40.8]
[1737606871796,0.62276,3213.9,3213.8,44.0078]
[1737606875198,0.62275,3214.0,3213.8,44.63058]
[1737606875397,0.62276,3213.9,3213.8,44.0078]
[1737606875598,0.63,3214.1,3213.8,44.0078]
[1737606875901,1.25273,3214.1,3213.9,0.62276]
[1737606876092,0.62273,3214.1,3213.9,1.27356]
[1737606876500,0.62274,3214.0,3213.9,0.6508]
[1737606876696,0.62273,3214.1,3213.9,0.6508]
[1737606877106,0.6938,3214.4,3213.9,0.6508]
[1737606877305,0.62274,3214.0,3213.9,0.6508]
[1737606877603,4.76413,3215.1,3213.9,3.11468113]
[1737606877791,0.62264,3214.6,3214.4,3.2078]
[1737606877998,0.62262,3214.6,3214.5,0.656]
[1737606879195,1.317,3215.0,3214.5,41.456]
[1737606879396,2.20791,3215.4,3214.8,3.2078]
[1737606879590,2.20791,3215.4,3214.5,41.456]
[1737606879591,0.62257,3214.9,3214.7,0.62259]
[1737606879796,0.6476,3215.3,3214.8,3.2078]
[1737606879996,0.62255,3215.0,3214.8,3.2078]
[1737606880402,0.6476,3215.3,3214.8,3.2078]
[1737606880602,0.62253,3215.1,3214.8,3.83037]
[1737606881409,0.62253,3215.1,3214.8,3.2078]
[1737606881704,0.6476,3215.3,3214.8,3.2078]
[1737606882097,0.62251,3215.2,3214.8,3.2078]
[1737606882303,0.62256,3215.0,3214.8,3.2078]
[1737606882607,0.6476,3215.3,3214.8,3.2078]
[1737606882912,0.62254,3215.1,3214.8,3.83037]
[1737606883105,0.6476,3215.3,3214.8,3.2078]
[1737606883403,0.62253,3215.1,3214.8,3.83037]
[1737606883607,0.6537,3215.4,3214.8,3.2078]
[1737606883808,0.62256,3215.0,3214.8,3.2078]
[1737606884210,0.62253,3215.1,3214.8,3.2078]
[1737606884619,0.62256,3215.0,3214.8,3.2078]
[1737606885006,0.62256,3214.9,3214.8,3.2078]
[1737606886812,0.62256,3214.9,3214.8,3.83038]
[1737606888411,0.62262,3214.6,3214.5,3.08651113]
[1737606888615,0.62261,3214.7,3214.6,0.62261]
[1737606888815,2.19354,3215.3,3214.6,1.93591]
[1737606888816,0.62259,3214.8,3214.6,1.93591]
[1737606889011,0.62259,3214.8,3214.7,40.8]
[1737606895116,0.62259,3214.8,3214.7,42.1369]
[1737606896414,0.62252,3215.1,3214.9,0.62255]
[1737606896714,0.62252,3215.1,3215.0,3.2078]
[1737606898725,1.30011,3215.2,3215.0,3.83033]
[1737606900417,1.30011,3215.2,3215.0,3.2078]
[1737606900618,1.30011,3215.2,3215.1,0.62252]
[1737606900822,3.2078,3216.0,3215.1,0.62252]
[1737606900823,0.62246,3215.5,3215.3,0.62247]
[1737606901026,0.62246,3215.5,3215.4,3.8001]
[1737606901323,0.62246,3215.5,3215.4,3.2078]
[1737606901518,0.62246,3215.5,3215.4,44.0078]
[1737606901723,0.62251,3215.2,3215.1,0.00467021]
[1737606902219,0.62251,3215.2,3215.1,40.80467021]
[1737606903026,0.62251,3215.2,3215.1,0.00467021]
[1737606903336,0.62251,3215.2,3214.6,3.2078]
[1737606903337,0.6226,3214.7,3214.6,3.2078]
[1737606903629,0.6226,3214.7,3214.6,44.0078]
[1737606911030,0.6226,3214.7,3214.6,40.8]
[1737606913935,0.6226,3214.7,3214.3,0.00467021]
[1737606913936,0.62266,3214.4,3214.3,0.00467021]
[1737606914433,0.62266,3214.4,3214.3,40.80467021]
[1737606915842,6.29434113,3214.4,3214.3,40.80467021]
[1737606916137,6.34658079,3214.4,3214.3,0.00467021]
[1737606916331,6.34658079,3214.4,3213.7,3.2078]
[1737606916332,0.62278,3213.8,3213.7,3.2078]
[1737606916531,0.62278,3213.8,3213.7,44.0078]
[1737606918229,0.62274,3214.0,3213.8,0.62277]
[1737606918440,0.62273,3214.1,3213.8,0.62277]
[1737606918941,0.62273,3214.1,3213.7,44.5879]
[1737606919240,0.62273,3214.1,3213.9,0.62274]
[1737606919446,4.4412,3214.8,3214.0,0.629]
[1737606919629,0.6226,3214.7,3214.1,3.8031]
[1737606919829,0.6227,3214.3,3214.1,3.8031]
[1737606920031,0.6227,3214.3,3214.1,4.42581]
[1737606920541,4.4412,3214.8,3214.1,3.8031]
[1737606920738,0.6227,3214.2,3214.1,3.8031]
[1737606921442,0.6227,3214.2,3214.1,3.2078]
[1737606922944,1.2373,3214.2,3214.1,3.2078]
[1737606924449,0.6227,3214.2,3214.1,3.2078]
[1737606925243,0.6227,3214.2,3214.1,44.0078]
[1737606929051,0.6096,3214.6,3214.1,44.0078]
[1737606929343,0.6096,3214.6,3214.2,0.62268]
[1737606929344,0.62265,3214.5,3214.2,0.62268]
[1737606929653,0.62263,3214.6,3214.4,0.62266]
[1737606929846,0.6226,3214.8,3214.6,0.62262]
[1737606930346,0.00467021,3215.0,3214.5,4.4873]
[1737606930543,0.62262,3214.6,3214.5,4.4873]
[1737606930941,0.62262,3214.6,3214.5,5.10994]
[1737606931142,0.00467021,3215.0,3214.8,0.62257]
[1737606931143,0.62722021,3215.0,3214.8,0.62257]
[1737606931347,0.00467021,3215.0,3214.9,3.71124113]
[1737606931848,0.00467021,3215.0,3214.9,44.51124113]
[1737606933247,0.00467021,3215.0,3214.9,41.4248]
[1737606933451,0.62721021,3215.0,3214.9,41.4248]
[1737606933947,0.62721021,3215.0,3214.9,44.6326]
[1737606934847,0.62721021,3215.0,3214.9,3.8326]
[1737606937349,0.62721021,3215.0,3214.9,41.4248]
[1737606939452,0.62721021,3215.0,3214.9,40.8]
[1737606947459,1.55648,3214.8,3214.0,3.2078]
[1737606947660,0.62272,3214.1,3214.0,3.2078]
[1737606947857,0.62272,3214.1,3214.0,44.0078]
[1737606948558,0.6227,3214.2,3214.0,44.63054]
[1737606948756,0.6227,3214.2,3214.0,44.0078]
[1737606948961,0.62272,3214.1,3214.0,44.0078]
[1737606951558,0.62272,3214.1,3214.0,44.63054]
[1737606951754,0.62272,3214.1,3214.0,44.0078]
[1737606957554,0.62272,3214.1,3214.0,44.63054]
[1737606957763,0.62272,3214.1,3214.0,44.0078]
[1737606959471,0.62272,3214.1,3214.0,44.63054]
[1737606959765,1.55657,3214.6,3214.0,44.63054]
[1737606959964,3.67828113,3214.7,3214.0,44.0078]
[1737606960166,0.62272,3214.1,3214.0,44.63053]
[1737606961970,1.2144,3214.7,3214.2,0.62268]
[1737606962173,0.62267,3214.4,3214.2,0.62269]
[1737606962472,3.67828113,3214.7,3214.0,44.0078]
[1737606962773,0.62269,3214.3,3214.1,1.19011]
[1737606963668,0.62267,3214.4,3214.2,0.62268]
[1737606964476,0.62266,3214.4,3214.2,0.62268]
[1737606964664,0.62263,3214.6,3214.3,0.62267]
[1737606964865,0.5908,3214.7,3214.4,4.3568]
[1737606965074,0.62264,3214.5,3214.4,4.3568]
[1737606965674,0.62264,3214.6,3214.4,45.1568]
[1737606966071,0.62264,3214.5,3214.4,44.5703]
[1737606966273,0.62264,3214.5,3214.4,44.0078]
[1737606970675,0.62264,3214.5,3214.4,40.8]
[1737606975178,0.62264,3214.5,3214.4,44.0078]
[1737606975379,0.62263,3214.6,3214.4,44.0078]
[1737606975689,0.62264,3214.5,3214.4,44.5851]
[1737606976371,0.62263,3214.6,3214.4,44.5851]
[1737606977276,0.56497021,3215.0,3214.4,44.5851]
[1737606977476,0.00467021,3215.0,3214.8,3.2078]
[1737606977778,0.00467021,3215.0,3214.9,4.24684113]
[1737606978970,0.5979,3215.7,3214.9,49.42428113]
[1737606979277,0.62235,3216.1,3215.7,0.6224]
[1737606979575,3.2078,3216.6,3215.9,3.2078]
[1737606979778,0.62235,3216.0,3215.9,3.2078]
[1737606979974,0.62235,3216.0,3215.9,3.21247021]
[1737606980278,0.581,3216.4,3215.9,3.21247021]
[1737606980479,0.62235,3216.1,3215.9,3.21247021]
[1737606980875,0.581,3216.4,3215.9,3.83484021]
[1737606981074,0.00467021,3216.6,3216.3,3.2078]
[1737606981382,0.62691021,3216.6,3216.4,0.593]
[1737606981877,0.62691021,3216.6,3216.5,3.08613113]
[1737606981878,0.00467021,3216.6,3216.5,3.08613113]
[1737606982077,0.00467021,3216.6,3216.5,3.66583113]
[1737606982381,0.62215,3217.1,3216.7,0.6222]
[1737606982680,0.5885,3217.5,3216.8,2.46388113]
[1737606982882,5.67168113,3217.9,3217.1,3.2078]
[1737606983181,0.0525074,3217.8,3217.1,5.67168113]
[1737606983483,0.6221,3217.4,3217.1,5.67168113]
[1737606983982,3.8055,3217.9,3216.7,3.2078]
[1737606983983,0.62221,3216.8,3216.7,3.2078]
[1737606984172,2.46388113,3217.2,3216.5,40.8]
[1737606984369,2.46388113,3217.2,3216.4,0.593]
[1737606984370,0.62221,3216.8,3216.4,0.593]
[1737606984776,0.62224,3216.6,3216.5,40.8]
[1737606984974,3.06158113,3217.2,3216.4,0.593]
[1737606985181,0.62225,3216.6,3216.4,0.593]
[1737606985378,0.62225,3216.6,3216.4,41.393]
[1737606985885,0.62225,3216.5,3216.4,41.393]
[1737606986085,2.46388113,3216.9,3216.3,3.2078]
[1737606986280,2.46388113,3216.9,3215.9,3.21247021]
[1737606986581,0.62228,3216.4,3216.0,0.6007]
[1737606986975,3.2078,3217.0,3216.0,0.6007]
[1737606987279,3.2078,3217.0,3216.4,3.2078]
[1737606987484,0.62225,3216.6,3216.4,3.2078]
[1737606988381,3.2078,3217.0,3216.4,3.2078]
[1737606988594,0.62224,3216.6,3216.4,3.2078]
[1737606989087,0.62225,3216.5,3216.4,3.2078]
[1737606989785,0.62225,3216.5,3216.0,4.43084]
[1737606989989,0.62227,3216.5,3216.0,4.43083]
[1737606990187,0.62228,3216.4,3216.1,0.62233]
[1737606990591,3.2078,3217.0,3216.0,3.8085]
[1737606990592,0.62232,3216.2,3216.0,3.8085]
[1737606990882,0.62233,3216.1,3216.0,3.8085]
[1737606991088,0.62233,3216.1,3216.0,3.2078]
[1737606991286,0.62235,3216.0,3215.9,0.00467021]
[1737606991690,6.29403113,3216.0,3215.9,0.00467021]
[1737606991883,6.34641123,3216.0,3215.9,0.00467021]
[1737606992889,6.34642932,3216.0,3215.9,0.00467021]
[1737606996281,6.3464519,3216.0,3215.9,0.00467021]
[1737606997893,6.29403113,3216.0,3215.9,0.00467021]
[1737606998089,6.34650883,3216.0,3215.9,0.00467021]
[1737606998990,0.62241,3215.7,3215.6,40.8]
[1737606999185,3.13876883,3215.7,3215.6,40.8]
[1737606999691,2.51634309,3215.7,3215.0,1.0693]
[1737606999987,2.51634309,3215.7,3215.0,1.07396295]
[1737606999988,0.6225,3215.3,3215.0,1.07396295]
[1737607000187,0.6225,3215.3,3215.1,40.8]
[1737607000885,0.62249,3215.3,3215.1,40.8]
[1737607002190,0.62249,3215.4,3215.1,40.8]
[1737607002390,0.62249,3215.4,3215.1,41.42252]
[1737607002689,0.62249,3215.3,3215.1,41.42252]
[1737607003092,0.62248,3215.4,3215.1,40.8]
[1737607003494,0.62248,3215.4,3215.1,41.42251]
[1737607003895,0.62248,3215.4,3215.2,0.6225]
[1737607004396,0.62248,3215.4,3215.1,41.42252]
[1737607004792,0.00464602,3215.7,3215.3,5.67168113]
[1737607004999,0.62705602,3215.7,3215.5,0.62244]
[1737607005189,0.62705602,3215.7,3215.3,5.67168113]
[1737607005394,0.00464602,3215.7,3215.5,0.62244]
[1737607005601,0.00464602,3215.7,3215.3,5.67168113]
[1737607005602,0.62706602,3215.7,3215.6,40.8]
[1737607007399,1.14106602,3215.7,3215.6,40.8]
[1737607008493,3.56729738,3215.7,3215.3,3.2078]
[1737607008693,0.62247,3215.4,3215.3,3.2078]
[1737607008902,0.62247,3215.4,3215.3,44.0078]
[1737607009107,3.08635113,3215.4,3215.3,40.8]
[1737607009398,3.08635113,3215.4,3215.0,0.00466295]
[1737607009399,0.62252,3215.1,3215.0,0.00466295]
[1737607012801,6.29420113,3215.1,3215.0,0.00466295]
[1737607013297,6.34666376,3215.1,3215.0,0.00466295]
[1737607014700,3.88278263,3215.1,3215.0,0.00466295]
[1737607014902,3.83032,3215.1,3215.0,0.00466295]
[1737607015406,6.34662325,3215.1,3215.0,0.00466295]
[1737607018708,6.29420113,3215.1,3215.0,0.00466295]
[1737607019007,6.34664575,3215.1,3215.0,0.00466295]
[1737607020300,3.88276462,3215.1,3215.0,0.00466295]
[1737607020503,3.2078,3215.5,3215.0,0.00466295]
[1737607020697,0.62252,3215.1,3215.0,0.00466295]
[1737607021895,3.13882007,3215.1,3215.0,0.00466295]
[1737607022299,0.67493894,3215.1,3215.0,0.00466295]
[1737607022709,0.62252,3215.1,3215.0,0.00466295]
[1737607023410,0.5501,3215.3,3215.0,0.54736295]
[1737607023708,0.62252,3215.1,3215.0,0.54736295]
[1737607023905,3.2078,3215.5,3215.0,3.01124408]
[1737607024111,3.2078,3215.5,3215.4,3.08635113]
[1737607024803,3.2078,3215.5,3215.4,43.88635113]
[1737607025014,3.2078,3215.5,3215.4,41.42247]
[1737607025200,3.2078,3215.5,3215.4,40.8]
[1737607025397,3.83025,3215.5,3215.4,40.8]
[1737607025602,0.62245,3215.5,3215.4,40.8]
[1737607026101,0.62244,3215.6,3215.4,40.8]
[1737607026297,0.62244,3215.6,3215.5,0.5142]
[1737607026510,0.62244,3215.6,3215.5,1.0625]
[1737607027908,2.46852715,3215.7,3215.2,3.2078]
[1737607028103,0.62249,3215.3,3215.2,3.2078]
[1737607028610,1.15479,3215.3,3215.2,3.2078]
[1737607029307,0.5323,3215.3,3215.0,0.00466295]
[1737607029513,0.62252,3215.1,3215.0,0.00466295]
[1737607030707,3.08640113,3215.1,3215.0,0.00466295]
[1737607030915,3.13882039,3215.1,3215.0,0.00466295]
[1737607032218,3.13879624,3215.1,3215.0,0.00466295]
[1737607033014,0.67491511,3215.1,3215.0,0.00466295]
[1737607033920,0.6748944,3215.1,3215.0,0.00466295]
[1737607036111,0.62252,3215.1,3215.0,0.00466295]
[1737607038627,0.67488345,3215.1,3215.0,0.00466295]
[1737607038926,3.13876123,3215.1,3215.0,0.00466295]
[1737607040713,3.138769,3215.1,3215.0,0.00466295]
[1737607041920,6.346569,3215.1,3215.0,0.00466295]
[1737607042327,6.34658044,3215.1,3215.0,0.00466295]
[1737607042929,6.34656795,3215.1,3215.0,0.00466295]
[1737607043820,1.55644,3214.9,3214.0,3.2078]
[1737607044025,0.6228,3213.7,3213.6,4.7653]
[1737607044332,0.6228,3213.7,3213.6,45.5653]
[1737607049129,0.6228,3213.7,3213.6,45.0526]
[1737607049430,3.08668113,3213.7,3213.3,0.00466295]
[1737607049635,0.62285,3213.4,3213.3,0.00466295]
[1737607050135,3.08673113,3213.4,3213.3,40.80466295]
[1737607050320,3.13904969,3213.4,3213.3,40.80466295]
[1737607051222,0.62301,3212.6,3212.5,0.5491]
[1737607051423,0.62301,3212.6,3212.5,0.5083]
[1737607051637,0.62301,3212.6,3212.5,41.3083]
[1737607051827,0.62301,3212.6,3212.5,40.8]
[1737607052029,0.62311,3212.1,3211.8,7.26887379]
[1737607052232,3.08699113,3212.1,3211.8,7.26887379]
[1737607052534,8.13930435,3212.1,3211.8,7.26887379]
[1737607052736,8.13930435,3212.1,3211.7,9.69649467]
[1737607052737,7.51619435,3212.1,3211.7,0.00466295]
[1737607052935,5.67168113,3211.8,3211.7,40.80466295]
[1737607053132,3.08704113,3211.8,3211.7,0.00466295]
[1737607053341,11.34718308,3211.8,3211.7,2.95e-06]
[1737607053834,6.34718308,3211.8,3211.7,2.95e-06]
[1737607054541,6.34719248,3211.8,3211.7,2.95e-06]
[1737607057226,6.34719248,3211.8,3211.7,40.80000295]
[1737607057938,6.34719248,3211.8,3209.2,0.62366]
[1737607057939,0.62351,3210.0,3209.2,0.62366]
[1737607058130,5.67168113,3210.1,3209.0,3.2078]
[1737607058332,2.46388113,3209.8,3209.0,3.2078]
[1737607058638,2.46388113,3209.8,3209.1,3.2078]
[1737607059037,0.62357,3209.7,3209.1,3.2078]
[1737607059230,0.62367,3209.2,3209.1,0.00467035]
[1737607064543,0.62367,3209.2,3209.1,40.80467035]
[1737607067647,0.62367,3209.2,3209.1,0.00467035]
[1737607068242,3.2078,3209.3,3209.1,0.00467035]
[1737607068243,3.83147,3209.3,3209.1,0.00467035]
[1737607068548,0.62367,3209.2,3209.1,0.00467035]
[1737607068846,0.62367,3209.2,3209.1,40.80467035]
[1737607069737,3.2078,3209.3,3209.1,40.80467035]
[1737607070348,0.62367,3209.2,3209.1,40.80467035]
[1737607071242,3.2078,3209.3,3209.1,40.80467035]
[1737607071443,2.99179089,3209.8,3209.1,40.80467035]
[1737607071444,6.19959089,3209.8,3209.1,40.80467035]
[1737607071638,0.62362,3209.5,3209.1,40.80467035]
[1737607071943,3.21247035,3209.8,3209.4,3.2078]
[1737607072142,0.6236,3209.6,3209.5,0.517]
[1737607073450,0.62367,3209.2,3209.1,0.00467035]
[1737607081250,3.2078,3209.3,3209.1,0.00467035]
[1737607081448,3.83145,3209.3,3209.1,0.00467035]
[1737607082451,0.62365,3209.3,3209.2,3.2078]
[1737607082651,2.46451299,3209.7,3209.2,3.2078]
[1737607082852,0.62363,3209.4,3209.3,0.5412]
[1737607083045,0.00467035,3209.8,3209.3,1.16484]
[1737607083046,0.62824035,3209.8,3209.3,1.16484]
[1737607083247,0.00467035,3209.8,3209.6,3.2078]
[1737607083443,0.00467035,3209.8,3209.7,0.5429]
[1737607083641,0.62822035,3209.8,3209.7,0.5429]
[1737607084142,0.00467035,3209.8,3209.3,0.5412]
[1737607084344,0.62363,3209.4,3209.3,0.5412]
[1737607087549,0.62359,3209.6,3209.4,0.62362]
[1737607087750,0.62359,3209.6,3209.3,1.16484]
[1737607087953,0.62359,3209.6,3209.3,0.5412]
[1737607088150,0.62359,3209.6,3209.4,0.62362]
[1737607088350,0.62359,3209.6,3209.3,1.16484]
[1737607088653,0.62359,3209.6,3209.3,0.5412]
[1737607088952,0.62359,3209.6,3209.4,0.62362]
[1737607089153,0.62359,3209.6,3209.3,1.16484]
[1737607089454,0.62363,3209.4,3209.3,0.5412]
[1737607089953,0.00467035,3209.8,3209.3,0.5412]
[1737607090156,0.62358,3209.7,3209.5,0.6236]
[1737607090452,0.00467035,3209.8,3209.3,0.5412]
[1737607090655,0.62357,3209.7,3209.4,0.62362]
[1737607090855,0.6236,3209.6,3209.4,0.62362]
[1737607091545,0.00467035,3209.8,3209.4,0.62362]
[1737607091856,0.00467035,3209.8,3209.3,0.5412]
[1737607092250,0.62363,3209.4,3209.3,0.5412]
[1737607092849,2.98570411,3209.6,3209.1,3.21247035]
[1737607093158,0.62367,3209.2,3209.1,3.21247035]
[1737607096658,0.62367,3209.2,3209.1,0.00467035]
[1737607097957,6.81717411,3209.2,3209.1,0.00467035]
[1737607101946,0.62377,3208.7,3208.2,40.8]
[1737607102152,0.62392,3207.9,3207.7,3.2078]
[1737607102351,2.98570411,3208.3,3207.7,3.2078]
[1737607102560,2.98570411,3208.3,3207.8,40.8]
[1737607102855,0.62393,3207.9,3207.8,40.8]
[1737607103451,3.60962411,3207.9,3207.8,0.36661913]
[1737607103648,3.60962411,3207.9,3207.5,0.00467035]
[1737607103649,0.62398,3207.6,3207.5,0.00467035]
[1737607103852,0.5343,3207.8,3207.5,40.80467035]
[1737607104053,1.66884,3207.8,3207.5,40.80467035]